bitfinex-derivatives/quotes_SOLF0:USTF0_20250101
["timestamp","ask_amount","ask_price","bid_price","bid_amount"]
[1735692663034,8.40654305,192.12,192.06,8.40654305]
[1735692663237,8.40654305,192.12,192.04,8.40654305]
[1735692664340,8.40654305,192.06,191.98,2.29843693]
[1735692664530,8.40654305,192.06,191.99,8.40654305]
[1735692664531,3.1,192.06,191.99,8.40654305]
[1735692664735,3.1,192.06,192.01,8.40654305]
[1735692665538,8.40654305,192.08,192.01,8.40654305]
[1735692665740,11.50654305,192.08,192.01,8.40654305]
[1735692666135,8.40654305,192.06,191.99,8.40654305]
[1735692666440,3.1,192.08,191.98,2.29843693]
[1735692667139,3.1,192.07,191.98,2.29843693]
[1735692668542,16.15291317,192.07,191.98,2.29843693]
[1735692669247,13.05291317,192.1,191.99,2.6095]
[1735692669444,3.1,192.09,191.99,2.6095]
[1735692669841,3.1,192.08,191.99,2.6095]
[1735692670343,3.1,192.08,192.01,2.6093]
[1735692670543,3.1,192.08,191.98,15.3513501]
[1735692670744,3.1,192.08,192.03,2.609]
[1735692671237,3.1,192.08,192.01,15.66211317]
[1735692672145,3.1,192.09,192.03,2.6089]
[1735692672439,3.1,192.09,191.98,15.3513501]
[1735692676543,3.1,192.09,191.98,17.9609501]
[1735692676748,3.1,192.09,191.98,15.3513501]
[1735692676949,3.28,192.08,191.98,15.3513501]
[1735692677152,3.28,192.08,191.98,17.9610501]
[1735692677544,3.28,192.08,191.98,15.3513501]
[1735692678648,3.28,192.08,192.01,2.6093]
[1735692678844,3.28,192.08,191.98,15.3513501]
[1735692679151,3.28,192.08,191.98,17.9609501]
[1735692680354,3.28,192.08,191.99,2.6095]
[1735692681749,3.28,192.08,192.01,2.6093]
[1735692682445,3.1234,192.11,192.01,15.66221317]
[1735692682642,3.28,192.1,192.03,2.609]
[1735692683344,3.28,192.1,192.01,15.66201317]
[1735692684243,3.28,192.1,192.0,2.6094]
[1735692684646,3.28,192.1,191.98,15.3513501]
[1735692685051,3.28,192.1,191.99,2.6095]
[1735692685653,3.28,192.1,192.0,2.6094]
[1735692686151,3.28,192.1,191.98,15.3513501]
[1735692686354,13.05291317,192.09,191.98,15.3513501]
[1735692686954,13.05291317,192.09,191.99,2.6095]
[1735692687857,3.28,192.08,192.0,2.6093]
[1735692688060,3.1234,192.11,191.98,15.3513501]
[1735692688250,3.28,192.08,192.04,8.34857475]
[1735692690162,3.28,192.08,192.04,10.95737475]
[1735692690463,3.28,192.08,192.04,2.6088]
[1735692691865,3.28,192.08,192.03,2.609]
[1735692692368,3.1234,192.11,192.03,2.609]
[1735692692563,1.4785,192.14,192.05,13.04418569]
[1735692692765,3.28,192.14,192.02,13.04418569]
[1735692692956,3.28,192.14,192.05,13.04418569]
[1735692693161,1.5338,192.17,192.05,13.04418569]
[1735692693365,3.28,192.16,192.1,2.608]
[1735692693863,3.28,192.16,192.1,2.6079]
[1735692694065,3.28,192.16,192.08,13.04418569]
[1735692695469,3.28,192.16,192.1,2.608]
[1735692697772,3.28,192.16,192.09,2.6082]
[1735692698073,3.28,192.16,192.08,13.04418569]
[1735692698466,3.28,192.16,192.09,2.6082]
[1735692699173,3.28,192.16,192.1,2.608]
[1735692699867,3.28,192.16,192.08,13.04418569]
[1735692700171,3.28,192.16,192.12,2.6077]
[1735692700366,3.28,192.16,192.08,13.04418569]
[1735692701169,3.28,192.16,192.05,16.32418569]
[1735692701570,3.28,192.16,192.07,2.6084]
[1735692701770,3.28,192.16,192.05,16.32418569]
[1735692701771,3.28,192.16,192.03,1.5799]
[1735692702572,3.28,192.16,192.06,2.6085]
[1735692702770,3.28,192.16,192.03,1.5799]
[1735692703571,3.28,192.16,192.09,2.6081]
[1735692705874,3.28,192.16,192.03,1.5799]
[1735692706071,3.26,192.15,192.06,13.04418569]
[1735692706475,3.26,192.15,192.09,13.04418569]
[1735692707376,3.26,192.15,192.11,2.6078]
[1735692707970,3.26,192.15,192.09,15.65228569]
[1735692708671,3.26,192.15,192.08,2.6083]
[1735692709079,3.26,192.15,192.06,13.04418569]
[1735692709369,3.26,192.15,192.09,2.6081]
[1735692710274,3.26,192.15,192.06,13.04418569]
[1735692711577,1.5338,192.17,192.09,2.6081]
[1735692711879,3.26,192.16,192.09,2.6081]
[1735692712279,3.0861,192.19,192.13,8.34429918]
[1735692712578,6.3461,192.19,192.13,8.34429918]
[1735692713477,6.3461,192.19,192.13,10.95189918]
[1735692715077,3.26,192.19,192.13,10.95189918]
[1735692715780,11.60429918,192.19,192.13,10.95189918]
[1735692716773,8.34429918,192.17,192.11,10.95219918]
[1735692718182,8.34429918,192.17,192.06,1.5617]
[1735692718377,1.5064,192.18,192.09,8.34429918]
[1735692718578,8.34429918,192.16,192.09,8.34429918]
[1735692718981,3.0602,192.18,192.09,8.34429918]
[1735692719283,8.34429918,192.16,192.09,8.34429918]
[1735692719684,11.40449918,192.18,192.11,8.34429918]
[1735692719884,11.40449918,192.18,192.04,3.26]
[1735692719885,11.40449918,192.18,192.09,8.34429918]
[1735692720184,8.34429918,192.16,192.09,8.34429918]
[1735692720580,8.34429918,192.16,192.09,10.95239918]
[1735692720779,8.34429918,192.16,192.09,8.34429918]
[1735692721479,8.34429918,192.14,192.07,8.34429918]
[1735692721783,3.26,192.13,192.07,8.34429918]
[1735692721982,8.34429918,192.1,192.03,9.92419918]
[1735692722287,8.34429918,192.12,192.05,8.34429918]
[1735692722582,8.34429918,192.12,192.05,10.95299918]
[1735692723085,8.34429918,192.12,192.05,8.34429918]
[1735692723983,8.34429918,192.12,192.05,10.95299918]
[1735692724487,8.34429918,192.12,192.05,8.34429918]
[1735692724683,8.34429918,192.06,191.98,2.29843693]
[1735692724884,3.26,192.05,191.99,8.34429918]
[1735692726785,3.26,192.05,191.99,10.95379918]
[1735692727481,3.26,192.05,191.99,8.34429918]
[1735692729688,3.26,192.05,192.0,2.6094]
[1735692731891,3.26,192.05,192.01,8.34429918]
[1735692732591,8.34429918,192.11,192.03,8.34429918]
[1735692732889,3.26,192.1,192.05,8.34429918]
[1735692736789,3.2,192.11,192.05,8.34429918]
[1735692737996,11.54429918,192.11,191.98,3.86773693]
[1735692738194,11.54429918,192.11,192.04,8.34429918]
[1735692739395,8.34429918,192.09,192.02,8.34429918]
[1735692746805,8.34429918,192.07,192.02,8.34429918]
[1735692747106,3.2,192.06,192.02,8.34429918]
[1735692747503,3.2,192.06,192.0,2.6094]
[1735692747703,8.34429918,192.05,191.99,8.34429918]
[1735692747903,8.34429918,192.03,191.98,2.29843693]
[1735692751403,8.34429918,192.03,191.98,4.90813693]
[1735692751598,4.5639,192.1,191.98,10.64273611]
[1735692751808,8.34429918,192.08,192.02,10.95349918]
[1735692752009,8.34429918,192.08,192.02,8.34429918]
[1735692753008,4.5639,192.1,192.05,8.34429918]
[1735692753209,4.6925,192.1,192.05,8.34429918]
[1735692753614,4.6925,192.1,192.05,10.95299918]
[1735692753809,1.4925,192.1,192.05,10.95299918]
[1735692754002,3.2,192.09,192.05,10.95299918]
[1735692754401,1.4925,192.1,192.05,10.95299918]
[1735692754610,3.2,192.09,192.05,10.95299918]
[1735692757608,1.4925,192.1,192.05,8.34429918]
[1735692757810,3.2,192.09,192.07,8.34429918]
[1735692760408,8.34429918,192.13,192.07,8.34429918]
[1735692760609,3.2,192.13,192.09,10.95249918]
[1735692761017,3.2,192.14,192.09,10.95249918]
[1735692761218,3.2,192.14,192.09,8.34429918]
[1735692762422,11.54429918,192.14,192.09,8.34429918]
[1735692763321,3.2,192.14,192.09,8.34429918]
[1735692763925,3.2,192.14,192.09,10.95249918]
[1735692764127,54.22,192.17,192.09,10.95249918]
[1735692764425,11.54429918,192.16,192.09,10.95249918]
[1735692768922,11.54429918,192.16,192.09,8.34429918]
[1735692769124,8.34429918,192.14,192.08,2.6083]
[1735692772630,8.34429918,192.14,192.09,2.6082]
[1735692772931,8.34429918,192.14,192.07,8.34429918]
[1735692773524,8.34429918,192.14,192.02,1.5684]
[1735692773822,8.34429918,192.1,192.03,5.14663089]
[1735692774030,3.14,192.09,192.04,2.6089]
[1735692774425,3.14,192.09,192.02,8.34429918]
[1735692774627,3.14,192.09,192.02,10.95339918]
[1735692775228,8.34429918,192.08,192.02,8.34429918]
[1735692775531,3.14,192.09,192.01,2.6093]
[1735692775720,8.34429918,192.08,192.01,2.6093]
[1735692778826,8.34429918,192.08,191.98,2.29843693]
[1735692779132,8.34429918,192.06,191.99,8.34429918]
[1735692781133,8.34429918,192.06,191.98,4.90803693]
[1735692781431,8.34429918,192.06,191.98,13.25233611]
[1735692781932,8.34429918,192.06,191.98,4.90803693]
[1735692782136,8.34429918,192.04,191.98,2.29843693]
[1735692782331,3.14,192.03,191.98,2.29843693]
[1735692783434,3.14,192.03,191.97,10.95409918]
[1735692783634,3.14,192.03,191.97,8.34429918]
[1735692783827,8.34429918,192.0,191.86,12.17128567]
[1735692784034,8.34429918,191.98,191.9,8.34429918]
[1735692784234,3.14,191.97,191.9,8.34429918]
[1735692785131,3.14,191.97,191.9,10.95509918]
[1735692785331,8.34429918,191.96,191.9,10.95509918]
[1735692785532,8.34429918,191.96,191.9,8.34429918]
[1735692785940,8.34429918,191.94,191.88,8.34429918]
[1735692787342,8.34429918,191.94,191.88,10.95529918]
[1735692787536,8.34429918,191.94,191.85,1.577]
[1735692787741,8.34429918,191.94,191.86,8.34429918]
[1735692788043,8.34429918,191.94,191.88,2.6111]
[1735692789643,3.14,191.95,191.9,8.34429918]
[1735692790541,3.14,191.95,191.92,2.6105]
[1735692790944,3.14,191.95,191.92,10.95479918]
[1735692791241,3.14,191.96,191.94,2.6103]
[1735692792040,3.14,191.96,191.94,8.34429918]
[1735692792243,3.14,191.96,191.95,2.6101]
[1735692792542,4.6891,192.02,191.94,8.34429918]
[1735692792742,4.6891,192.02,191.98,2.6096]
[1735692792743,3.14,192.01,191.98,2.6096]
[1735692793442,3.14,192.03,191.98,2.6096]
[1735692793947,3.14,192.03,191.99,8.34429918]
[1735692794442,3.14,192.05,192.01,8.34429918]
[1735692794638,8.34429918,192.08,192.01,8.34429918]
[1735692794936,8.34429918,192.08,192.01,10.95359918]
[1735692794937,11.48429918,192.08,192.01,10.95359918]
[1735692795141,8.34429918,192.06,191.99,8.34429918]
[1735692796243,8.34429918,192.06,192.0,2.6093]
[1735692797740,1.5156,192.13,192.04,2.6089]
[1735692797940,8.34429918,192.1,192.04,2.6089]
[1735692798141,11.46429918,192.1,192.04,2.6089]
[1735692798443,11.46429918,192.1,192.03,2.609]
[1735692798643,11.46429918,192.1,192.01,8.34429918]
[1735692798943,11.46429918,192.1,192.03,8.34429918]
[1735692799446,11.46429918,192.1,192.04,2.6089]
[1735692799636,11.46429918,192.1,192.03,8.34429918]
[1735692800540,11.46429918,192.1,192.03,2.609]
[1735692801642,11.46429918,192.1,192.02,8.34429918]
[1735692801942,8.34429918,192.08,192.0,8.34429918]
[1735692803447,8.34429918,192.06,192.0,8.34429918]
[1735692803941,8.34429918,192.06,191.97,1.611]
[1735692803942,8.34429918,192.06,191.98,10.95399918]
[1735692804144,3.12,192.05,191.98,10.95399918]
[1735692804943,8.34429918,192.04,191.98,8.34429918]
[1735692805346,8.34429918,192.02,191.94,2.00338695]
[1735692805639,8.34429918,192.02,191.94,10.34768613]
[1735692805847,8.34429918,192.02,191.95,2.6101]
[1735692808748,8.34429918,192.0,191.94,10.34768613]
[1735692808946,3.12,192.0,191.94,10.34768613]
[1735692809146,3.12,192.0,191.96,8.34429918]
[1735692809846,3.12,192.0,191.96,10.95419918]
[1735692811946,3.12,192.0,191.95,2.6101]
[1735692813450,8.34429918,192.02,191.95,2.6101]
[1735692813647,3.12,192.01,191.95,2.6101]
[1735692816149,3.12,192.01,191.96,2.61]
[1735692818847,8.34429918,192.02,191.94,10.34768613]
[1735692819150,8.34429918,192.09,192.0,8.34429918]
[1735692819345,8.34429918,192.09,192.02,8.34429918]
[1735692819759,8.34429918,192.09,192.04,2.6088]
[1735692819943,8.34429918,192.09,192.01,8.34429918]
[1735692820852,8.34429918,192.09,192.01,10.95359918]
[1735692821048,8.34429918,192.07,191.99,8.34429918]
[1735692821249,8.34429918,192.07,192.0,2.6094]
[1735692823056,3.12,192.1,191.99,8.34429918]
[1735692823258,8.34429918,192.07,192.01,10.95349918]
[1735692826759,3.12,192.1,192.01,10.95349918]
[1735692826952,3.12,192.1,192.02,2.6092]
[1735692827152,8.34429918,192.08,192.02,2.6092]
[1735692829263,3.12,192.1,192.02,2.6092]
[1735692829264,8.34429918,192.07,192.02,2.6092]
[1735692829956,3.12,192.1,191.99,8.34429918]
[1735692830161,8.34429918,192.08,192.03,2.609]
[1735692830658,8.34429918,192.08,192.02,2.6091]
[1735692831469,1.4841,192.14,192.05,8.34429918]
[1735692831764,8.34429918,192.13,192.05,8.34429918]
[1735692832158,8.34429918,192.13,192.07,2.6084]
[1735692833267,4.5641,192.14,192.07,2.6084]
[1735692833564,8.34429918,192.12,192.07,2.6084]
[1735692833754,8.34429918,192.12,192.05,8.34429918]
[1735692833959,8.34429918,192.12,192.06,2.6086]
[1735692834865,8.34429918,192.12,192.05,10.95299918]
[1735692836562,8.34429918,192.12,192.05,8.34429918]
[1735692836865,8.34429918,192.12,192.06,2.6086]
[1735692837065,8.34429918,192.12,192.05,8.34429918]
[1735692837263,8.34429918,192.1,192.05,2.6087]
[1735692837663,8.34429918,192.1,192.01,3.08]
[1735692837963,8.34429918,192.08,192.04,2.6089]
[1735692838364,3.08,192.09,192.04,2.6089]
[1735692838655,3.08,192.09,192.03,2.609]
[1735692839064,3.08,192.09,192.01,11.42429918]
[1735692839273,3.08,192.09,192.04,2.6088]
[1735692839561,3.08,192.09,192.03,8.34429918]
[1735692840461,3.08,192.09,192.05,2.6087]
[1735692842667,3.08,192.09,192.04,2.6089]
[1735692843171,11.42429918,192.09,192.04,2.6089]
[1735692844673,3.08,192.09,192.03,8.34429918]
[1735692844874,3.08,192.11,192.05,8.34429918]
[1735692845172,3.08,192.13,192.07,8.34429918]
[1735692845774,3.08,192.13,192.08,2.6083]
[1735692846165,1.4841,192.14,192.08,2.6083]
[1735692846365,4.5641,192.14,192.08,2.6083]
[1735692846564,11.37189918,192.15,192.09,10.95239918]
[1735692846770,54.22,192.22,192.09,10.95239918]
[1735692846771,3.08,192.16,192.09,8.34429918]
[1735692847188,3.08,192.17,192.11,2.6078]
[1735692849787,8.34429918,192.18,192.11,2.6078]
[1735692849988,11.42429918,192.2,192.13,2.6076]
[1735692851485,11.42429918,192.2,192.14,2.6075]
[1735692853991,3.08,192.2,192.14,2.6075]
[1735692854178,4.6304,192.21,192.16,2.6072]
[1735692854778,1.5712,192.21,192.16,2.6072]
[1735692855085,87.55016807,192.28,192.17,8.34429918]
[1735692855086,3.08,192.26,192.17,8.34429918]
[1735692855391,8.34429918,192.25,192.17,8.34429918]
[1735692855587,8.34429918,192.25,192.2,2.6067]
[1735692856085,3.08,192.26,192.18,2.607]
[1735692856289,3.2536,192.27,192.19,8.34429918]
[1735692856487,8.34429918,192.26,192.14,3.08]
[1735692856689,8.34429918,192.24,192.18,8.34429918]
[1735692857689,3.2536,192.27,192.18,8.34429918]
[1735692857891,8.34429918,192.25,192.18,8.34429918]
[1735692859291,8.34429918,192.25,192.19,2.6069]
[1735692860392,14.69789918,192.27,192.2,10.95099918]
[1735692862392,6.3536,192.27,192.21,2.6066]
[1735692863494,6.3536,192.27,192.22,2.6064]
[1735692864185,6.3536,192.27,192.21,2.6066]
[1735692865795,3.2536,192.27,192.21,2.6066]
[1735692867696,3.2536,192.27,192.22,2.6064]
[1735692868591,11.59789918,192.27,192.22,2.6064]
[1735692869593,11.59789918,192.27,192.2,8.34429918]
[1735692869794,11.59789918,192.27,192.19,2.6068]
[1735692870892,11.59789918,192.27,192.22,2.6065]
[1735692871893,23.7454967,192.3,192.24,2.6061]
[1735692872198,23.7454967,192.3,192.24,8.34429918]
[1735692872388,23.7454967,192.3,192.21,3.1]
[1735692872389,23.7454967,192.3,192.26,8.34429918]
[1735692872591,23.7454967,192.3,192.28,2.6056]
[1735692873201,8.34429918,192.29,192.22,8.34429918]
[1735692873994,8.34429918,192.29,192.18,3.1]
[1735692873995,8.34429918,192.27,192.18,3.1]
[1735692874293,8.34429918,192.27,192.21,2.6068]
[1735692874891,1.507,192.29,192.25,8.34429918]
[1735692875094,23.7454967,192.3,192.25,8.34429918]
[1735692875600,23.7454967,192.3,192.27,8.34429918]
[1735692876493,23.7454967,192.3,192.25,8.34429918]
[1735692876998,23.7454967,192.3,192.26,2.6061]
[1735692878397,23.7454967,192.3,192.24,2.6064]
[1735692878600,23.7454967,192.3,192.23,8.34429918]
[1735692879303,8.34429918,192.29,192.21,11.44429918]
[1735692880100,8.34429918,192.29,192.25,2.6062]
[1735692881598,25.3277967,192.3,192.26,2.6061]
[1735692881803,33.67209588,192.3,192.26,2.6061]
[1735692882399,33.67209588,192.3,192.21,8.34429918]
[1735692882605,33.67209588,192.3,192.21,11.44429918]
[1735692883102,25.3277967,192.3,192.21,11.44429918]
[1735692883304,25.3277967,192.3,192.26,2.6061]
[1735692884302,8.34429918,192.29,192.26,2.6061]
[1735692884902,8.34429918,192.27,192.2,10.35615449]
[1735692885807,8.34429918,192.27,192.2,2.01185531]
[1735692886008,8.34429918,192.27,192.2,10.35615449]
[1735692887410,8.34429918,192.27,192.22,2.6067]
[1735692887906,6.0996,192.29,192.22,2.6067]
[1735692888106,8.34429918,192.28,192.2,10.35615449]
[1735692888306,8.34429918,192.28,192.23,2.6065]
[1735692888512,6.0996,192.29,192.23,2.6065]
[1735692888712,8.34429918,192.28,192.23,2.6065]
[1735692890404,8.34429918,192.28,192.21,8.34429918]
[1735692890706,8.34429918,192.28,192.22,2.6066]
[1735692891615,8.34429918,192.26,192.22,2.6066]
[1735692894413,6.0996,192.29,192.22,2.6066]
[1735692894613,8.34429918,192.27,192.22,2.6066]
[1735692895014,8.34429918,192.27,192.2,10.35615449]
[1735692895313,8.34429918,192.27,192.2,12.96295449]
[1735692896416,8.34429918,192.27,192.21,2.6068]
[1735692896609,8.34429918,192.26,192.21,2.6068]
[1735692900819,8.34429918,192.26,192.2,10.35615449]
[1735692901115,8.34429918,192.26,192.22,2.6067]
[1735692902216,11.46429918,192.27,192.23,2.6065]
[1735692902422,11.46429918,192.27,192.2,10.35615449]
[1735692902815,11.46429918,192.27,192.22,2.6066]
[1735692903014,8.34429918,192.23,192.13,7.08442668]
[1735692903215,3.12,192.22,192.14,4.33727017]
[1735692903519,4.7143,192.22,192.17,2.6073]
[1735692904420,8.34429918,192.21,192.17,2.6073]
[1735692905616,4.7143,192.22,192.15,2.6075]
[1735692905827,8.34429918,192.16,192.07,1.5766]
[1735692906018,8.34429918,192.16,192.11,8.34429918]
[1735692906423,3.12,192.17,192.11,8.34429918]
[1735692907523,3.12,192.17,192.14,2.6077]
[1735692912419,3.12,192.17,192.11,8.34429918]
[1735692912918,8.34429918,192.2,192.14,2.6077]
[1735692913121,1.5943,192.22,192.19,8.34429918]
[1735692913326,3.12,192.27,192.21,8.34429918]
[1735692913528,3.12,192.27,192.23,8.34429918]
[1735692913921,2.9908,192.28,192.24,2.6064]
[1735692914824,2.9908,192.28,192.23,10.95079918]
[1735692915520,2.9908,192.28,192.17,3.12]
[1735692915732,2.9908,192.28,192.22,8.34429918]
[1735692916430,2.9908,192.28,192.23,2.6065]
[1735692917528,1.5141,192.28,192.25,2.6062]
[1735692917922,4.7369,192.29,192.24,8.34429918]
[1735692918122,1.6169,192.29,192.26,10.95039918]
[1735692918321,23.7454967,192.3,192.26,10.95039918]
[1735692918921,23.7454967,192.3,192.26,2.6061]
[1735692920127,23.7454967,192.3,192.24,8.34429918]
[1735692920428,23.7454967,192.3,192.26,2.6061]
[1735692922127,23.7454967,192.3,192.26,10.95039918]
[1735692927334,23.7454967,192.3,192.26,8.34429918]
[1735692927538,23.7454967,192.3,192.28,8.34429918]
[1735692928029,23.7454967,192.3,192.29,2.6057]
[1735692930339,23.7454967,192.3,192.26,8.34429918]
[1735692931838,23.7454967,192.3,192.28,2.6058]
[1735692932332,23.7454967,192.3,192.25,2.6062]
[1735692932533,32.08979588,192.3,192.2,59.80784058]
[1735692932730,32.08979588,192.3,192.22,8.34429918]
[1735692932934,32.08979588,192.3,192.26,2.6061]
[1735692936436,32.08979588,192.3,192.24,8.34429918]
[1735692936630,23.7454967,192.3,192.24,8.34429918]
[1735692937335,23.7454967,192.3,192.25,2.6062]
[1735692937535,23.7454967,192.3,192.25,8.34429918]
[1735692937941,23.7454967,192.3,192.27,2.606]
[1735692940744,32.08979588,192.3,192.21,3.08]
[1735692940939,8.34429918,192.28,192.21,8.34429918]
[1735692941536,8.34429918,192.28,192.2,56.72784058]
[1735692941744,23.7454967,192.3,192.2,56.72784058]
[1735692941745,8.34429918,192.26,192.2,56.72784058]
[1735692942140,11.42429918,192.26,192.21,2.6068]
[1735692942339,11.42429918,192.26,192.2,56.72784058]
[1735692942830,11.42429918,192.26,192.21,2.6068]
[1735692943029,11.42429918,192.26,192.2,56.72784058]
[1735692944338,11.42429918,192.26,192.22,2.6067]
[1735692948744,11.42429918,192.26,192.2,56.72784058]
[1735692948942,8.34429918,192.22,192.12,7.08442668]
[1735692949146,3.08,192.21,192.15,8.34429918]
[1735692949345,8.34429918,192.2,192.15,2.6077]
[1735692949536,8.34429918,192.2,192.13,15.42872586]
[1735692950045,8.34429918,192.2,192.14,2.6077]
[1735692950436,8.34429918,192.2,192.13,8.34429918]
[1735692951243,8.34429918,192.2,192.08,1.6125]
[1735692951244,8.34429918,192.18,192.11,8.34429918]
[1735692951847,8.34429918,192.18,192.13,2.6078]
[1735692952050,1.4763,192.17,192.13,2.6078]
[1735692952351,1.4763,192.17,192.11,8.34429918]
[1735692952741,3.08,192.16,192.11,8.34429918]
[1735692953551,3.08,192.16,192.12,2.6081]
[1735692954150,3.08,192.16,192.11,8.34429918]
[1735692954749,3.08,192.16,192.12,2.608]
[1735692954946,3.08,192.16,192.11,8.34429918]
[1735692955953,3.08,192.16,192.14,2.6077]
[1735692956449,3.08,192.16,192.12,2.608]
[1735692956655,3.08,192.16,192.11,8.34429918]
[1735692956950,3.08,192.16,192.14,2.6077]
[1735692957655,3.08,192.16,192.05,3.08]
[1735692957854,3.08,192.16,192.11,8.34429918]
[1735692959456,3.08,192.16,192.14,2.6077]
[1735692959749,3.08,192.16,192.14,0.157]
[1735692959956,3.08,192.16,192.05,3.08]
[1735692960257,3.08,192.16,192.11,8.34429918]
[1735692960852,3.08,192.16,192.14,2.6078]
[1735692961456,3.08,192.16,192.12,2.608]
[1735692961658,3.08,192.16,192.11,8.34429918]
[1735692963154,6.0343,192.17,192.11,8.34429918]
[1735692963459,6.0343,192.17,192.14,2.6078]
[1735692964558,6.0343,192.17,192.11,8.34429918]
[1735692965159,6.0343,192.17,192.14,2.6078]
[1735692967256,8.34429918,192.26,192.15,8.34429918]
[1735692967462,4.6585,192.25,192.19,8.34429918]
[1735692968461,4.6585,192.25,192.2,2.6069]
[1735692968860,4.6585,192.25,192.19,10.95139918]
[1735692969958,4.6585,192.25,192.19,2.6071]
[1735692970157,8.34429918,192.24,192.1,3.14]
[1735692970359,8.34429918,192.22,192.1,6.22]
[1735692970561,8.34429918,192.2,192.09,5.07617556]
[1735692970752,11.42429918,192.2,192.13,2.6079]
[1735692971354,11.42429918,192.2,192.14,2.6078]
[1735692971556,11.42429918,192.2,192.12,8.34429918]
[1735692972861,11.42429918,192.2,192.09,5.07617556]
[1735692972862,3.08,192.2,192.14,8.34429918]
[1735692973063,3.08,192.2,192.17,2.6074]
[1735692973261,3.08,192.22,192.17,2.6074]
[1735692973660,3.08,192.22,192.16,8.34429918]
[1735692973861,3.08,192.22,192.18,2.6073]
[1735692974361,3.08,192.22,192.17,2.6074]
[1735692976662,3.08,192.22,192.15,8.34429918]
[1735692976968,8.34429918,192.21,192.15,8.34429918]
[1735692977567,8.34429918,192.21,192.15,10.95199918]
[1735692978268,8.34429918,192.21,192.16,2.6075]
[1735692978565,3.08,192.22,192.16,2.6075]
[1735692978967,3.08,192.22,192.15,8.34429918]
[1735692979169,3.08,192.22,192.17,2.6074]
[1735692979368,3.08,192.22,192.17,10.95169918]
[1735692979571,3.08,192.22,192.18,2.6072]
[1735692979763,1.5785,192.25,192.21,8.34429918]
[1735692980969,1.5785,192.25,192.21,10.95109918]
[1735692983878,1.5785,192.25,192.1,28.33770674]
[1735692984081,8.34429918,192.23,192.16,10.95179918]
[1735692984478,8.34429918,192.23,192.17,2.6074]
[1735692986477,1.5785,192.25,192.19,2.607]
[1735692986679,1.5785,192.25,192.2,8.34429918]
[1735692987782,3.1084,192.28,192.22,8.34429918]
[1735692988980,3.1084,192.28,192.22,10.95099918]
[1735692989282,3.1084,192.28,192.22,8.34429918]
[1735692989984,3.1084,192.28,192.22,10.95099918]
[1735692990380,3.1084,192.28,192.23,2.6066]
[1735692992281,3.1084,192.28,192.22,10.95099918]
[1735692992485,3.1084,192.28,192.22,8.34429918]
[1735692992781,3.1084,192.28,192.22,10.95099918]
[1735692992988,6.1884,192.28,192.22,10.95099918]
[1735692993583,6.1884,192.28,192.17,1.6177]
[1735692993584,8.34429918,192.27,192.17,1.6177]
[1735692993781,8.34429918,192.25,192.2,2.607]
[1735692994485,8.34429918,192.25,192.19,8.34429918]
[1735692994979,8.34429918,192.25,192.19,10.95119918]
[1735692996578,1.5048,192.27,192.19,10.95119918]
[1735692996887,9.84909918,192.27,192.19,10.95119918]
[1735692999186,8.34429918,192.25,192.17,2.6072]
[1735693001384,8.34429918,192.25,192.18,2.6071]
[1735693001591,8.34429918,192.25,192.18,8.34429918]
[1735693001988,8.34429918,192.25,192.2,2.6069]
[1735693005590,8.34429918,192.25,192.18,8.34429918]
[1735693005792,8.34429918,192.25,192.19,2.6068]
[1735693008298,1.5048,192.27,192.19,2.6068]
[1735693008498,8.34429918,192.26,192.19,2.6068]
[1735693011899,1.5048,192.27,192.19,2.6068]
[1735693012100,8.34429918,192.25,192.19,2.6068]
[1735693016407,3.08,192.24,192.19,2.6068]
[1735693016797,3.08,192.24,192.18,10.95129918]
[1735693020904,3.08,192.24,192.18,8.34429918]
[1735693021111,3.08,192.24,192.16,8.34429918]
[1735693022209,3.08,192.24,192.16,10.95149918]
[1735693022409,3.08,192.24,192.16,8.34429918]
[1735693023613,3.08,192.24,192.17,7.76116989]
[1735693023813,3.08,192.24,192.16,8.34429918]
[1735693024011,3.08,192.24,192.16,10.95159918]